fUST/lending_fUST_20250408
["ID","MTS","AMOUNT","RATE_DAILY","PERIOD"]
[357478397,1744079477101,-1268.13,0.00026301,2]
[357478398,1744079477111,-1140.19,0.00026301,2]
[357478399,1744079477122,-727.74,0.00026301,2]
[357478400,1744079477133,-554.86,0.00026301,2]
[357478401,1744079477143,-831.74,0.00026301,2]
[357478402,1744079477153,-357.53557895,0.00026301,2]
[357478403,1744079477163,-500.0,0.00026301,2]
[357478404,1744079477174,-1393.1,0.00026301,2]
[357478405,1744079477186,-951.68,0.00026301,2]
[357478406,1744079477196,-1353.37,0.00026301,2]
[357478407,1744079477208,-500.0,0.00026301,2]
[357478408,1744079477219,-1182.11,0.00026301,2]
[357478409,1744079477230,-539.18233485,0.00026301,2]
[357478410,1744079477241,-526.21,0.00026301,2]
[357478411,1744079477251,-500.0,0.00026301,2]
[357478412,1744079477262,-2114.72,0.00026301,2]
[357478413,1744079477273,-572.22,0.00026301,2]
[357478414,1744079477283,-8763.46,0.00026301,2]
[357478415,1744079477294,-1114.99,0.00026301,2]
[357478416,1744079477304,-500.0,0.00026301,2]
[357478417,1744079477315,-500.0,0.00026301,2]
[357478418,1744079477325,-293.47734858,0.00026301,2]
[357478419,1744079477335,-836.02,0.00026301,2]
[357478420,1744079477346,-1780.71,0.00026301,2]
[357478421,1744079477357,-500.0,0.00026301,2]
[357478422,1744079477367,-595.24,0.00026301,2]
[357478423,1744079477378,-524.96,0.00026301,2]
[357478424,1744079477390,-771.06,0.00026301,2]
[357478425,1744079477402,-2262.69,0.00026301,2]
[357478426,1744079477419,-2880.26,0.00026301,2]
[357478427,1744079477436,-500.0,0.00026301,2]
[357478428,1744079477449,-1134.35,0.00026301,2]
[357478429,1744079477460,-1798.88,0.00026301,2]
[357478430,1744079477472,-589.5,0.00026301,2]
[357478431,1744079477483,-1340.54,0.00026301,2]
[357478432,1744079477494,-500.0,0.00026301,2]
[357478433,1744079477505,-500.0,0.00026301,2]
[357478434,1744079477515,-2337.51,0.00026301,2]
[357478435,1744079477525,-542.01,0.00026301,2]
[357478436,1744079477536,-2076.71,0.00026301,2]
[357478437,1744079477548,-730.76,0.00026301,2]
[357478438,1744079477558,-1162.69,0.00026301,2]
[357478439,1744079477570,-1291.27,0.00026301,2]
[357478440,1744079477580,-546.37,0.00026301,2]
[357478441,1744079477591,-1701.69,0.00026301,2]
[357478442,1744079477603,-1276.21,0.00026301,2]
[357478443,1744079477614,-326.45859928,0.00026301,2]
[357478444,1744079477625,-561.08,0.00026301,2]
[357478445,1744079477635,-500.0,0.00026301,2]
[357478446,1744079477649,-890.46,0.00026301,2]
[357478447,1744079477660,-5381.3,0.00026301,2]
[357478448,1744079477670,-1513.16,0.00026301,2]
[357478449,1744079477688,-720.44,0.00026301,2]
[357478450,1744079477699,-487.4252717,0.00026301,2]
[357478451,1744079477710,-500.0,0.00026301,2]
[357478452,1744079477721,-1073.11,0.00026301,2]
[357478453,1744079477731,-500.0,0.00026301,2]
[357478454,1744079477741,-568.94,0.00026301,2]
[357478455,1744079477751,-523.03,0.00026301,2]
[357478456,1744079477762,-795.94,0.00026301,2]
[357478457,1744079477773,-590.76,0.00026301,2]
[357478458,1744079477783,-1531.45,0.00026301,2]
[357478459,1744079477794,-1878.37,0.00026301,2]
[357478460,1744079477804,-1180.34,0.00026301,2]
[357478461,1744079477816,-1118.42,0.00026301,2]
[357478462,1744079477827,-2000.22,0.00026301,2]
[357478463,1744079477838,-500.0,0.00026301,2]
[357478464,1744079477848,-500.0,0.00026301,2]
[357478465,1744079477859,-1868.62,0.00026301,2]
[357478466,1744079477870,-500.0,0.00026301,2]
[357478467,1744079477881,-500.0,0.00026301,2]
[357478468,1744079477892,-1602.29,0.00026301,2]
[357478469,1744079477904,-500.0,0.00026301,2]
[357478470,1744079477914,-1915.21,0.00026301,2]
[357478471,1744079477926,-500.0,0.00026301,2]
[357478472,1744079477936,-602.81,0.00026301,2]
[357478473,1744079477946,-500.0,0.00026301,2]
[357478474,1744079477957,-2426.96,0.00026301,2]
[357478475,1744079477968,-167.8303843,0.00026301,2]
[357478476,1744079477979,-1165.83,0.00026301,2]
[357478477,1744079477990,-2935.5,0.00026301,2]
[357478478,1744079478001,-955.52,0.00026301,2]
[357478479,1744079478012,-1109.48,0.00026301,2]
[357478480,1744079478024,-500.0,0.00026301,2]
[357478481,1744079478034,-500.0,0.00026301,2]
[357478482,1744079478044,-1240.57,0.00026301,2]
[357478483,1744079478057,-243.72639097,0.00026301,2]
[357478484,1744079478068,-500.0,0.00026301,2]
[357478485,1744079478079,-1640.16,0.00026301,2]
[357478486,1744079478090,-503.7,0.00026301,2]
[357478487,1744079478101,-1130.38,0.00026301,2]
[357478488,1744079478112,-389.45524024,0.00026575,2]
[357478489,1744079478124,-500.11,0.00026575,2]
[357478490,1744079478136,-500.0,0.00026575,2]
[357478491,1744079478147,-500.0,0.00026575,2]
[357478492,1744079478350,-500.0,0.00026575,2]
[357478493,1744079478367,-500.0,0.00026575,2]
[357478494,1744079478378,-500.0,0.00026575,2]
[357478495,1744079478388,-617.55,0.00026575,2]
[357478496,1744079478399,-655.89,0.00026575,2]
[357478497,1744079478410,-500.0,0.00026575,2]
[357478498,1744079478420,-694.6,0.00026575,2]
[357478499,1744079478434,-777.63,0.00026575,2]
[357478500,1744079478445,-536.91,0.00026575,2]
[357478501,1744079478461,-527.31,0.00026575,2]
[357478502,1744079478471,-647.06,0.00026575,2]
[357478503,1744079478482,-452.73808573,0.00026575,2]
[357478504,1744079478492,-500.0,0.00026575,2]
[357478505,1744079478502,-1500.08,0.00026575,2]
[357478506,1744079478512,-601.69,0.00026575,2]
[357478507,1744079478522,-500.0,0.00026575,2]
[357478508,1744079478531,-500.0,0.00026575,2]
[357478509,1744079478541,-1208.47,0.00026575,2]
[357478510,1744079478552,-500.0,0.00026575,2]
[357478511,1744079478563,-1268.13,0.00026575,2]
[357478512,1744079478574,-1140.19,0.00026575,2]
[357478513,1744079478585,-727.74,0.00026575,2]
[357478514,1744079478595,-554.86,0.00026575,2]
[357478515,1744079478606,-831.74,0.00026575,2]
[357478516,1744079478616,-500.0,0.00026575,2]
[357478517,1744079478627,-1393.1,0.00026575,2]
[357478518,1744079478638,-951.68,0.00026575,2]
[357478519,1744079478652,-1353.37,0.00026575,2]
[357478520,1744079478663,-500.0,0.00026575,2]
[357478521,1744079478674,-1182.11,0.00026575,2]
[357478522,1744079478684,-526.21,0.00026575,2]
[357478523,1744079478695,-459.00766799,0.00026575,2]
[357478524,1744079478706,-2114.72,0.00026575,2]
[357478525,1744079478717,-572.22,0.00026575,2]
[357478526,1744079478727,-8763.46,0.00026575,2]
[357478527,1744079478737,-1114.99,0.00026575,2]
[357478528,1744079478747,-631.49113422,0.00026575,2]
[357478529,1744079478757,-500.0,0.00026575,2]
[357478530,1744079478767,-836.02,0.00026575,2]
[357478531,1744079478778,-1780.71,0.00026575,2]
[357478532,1744079478788,-500.0,0.00026575,2]
[357478533,1744079478798,-595.24,0.00026575,2]
[357478534,1744079478808,-524.96,0.00026575,2]
[357478535,1744079478819,-771.06,0.00026575,2]
[357478536,1744079478829,-2262.69,0.00026575,2]
[357478537,1744079478839,-2880.26,0.00026575,2]
[357478538,1744079478850,-500.0,0.00026575,2]
[357478539,1744079478861,-1134.35,0.00026575,2]
[357478540,1744079478871,-1798.88,0.00026575,2]
[357478541,1744079478881,-589.5,0.00026575,2]
[357478542,1744079478892,-1340.54,0.00026575,2]
[357478543,1744079478914,-500.0,0.00026575,2]
[357478544,1744079478927,-500.0,0.00026575,2]
[357478545,1744079478938,-2337.51,0.00026575,2]
[357478546,1744079478950,-542.01,0.00026575,2]
[357478547,1744079478961,-2076.71,0.00026575,2]
[357478548,1744079478972,-730.76,0.00026575,2]
[357478549,1744079478983,-1162.69,0.00026575,2]
[357478550,1744079478994,-1291.27,0.00026575,2]
[357478551,1744079479006,-546.37,0.00026575,2]
[357478552,1744079479018,-1701.69,0.00026575,2]
[357478553,1744079479029,-1276.21,0.00026575,2]
[357478554,1744079479039,-561.08,0.00026575,2]
[357478555,1744079479051,-500.0,0.00026575,2]
[357478556,1744079479062,-890.46,0.00026575,2]
[357478557,1744079479073,-5381.3,0.00026575,2]
[357478558,1744079479084,-1513.16,0.00026575,2]
[357478559,1744079479094,-720.44,0.00026575,2]
[357478560,1744079479105,-500.0,0.00026575,2]
[357478561,1744079479116,-1073.11,0.00026575,2]
[357478562,1744079479126,-518.96611911,0.00026575,2]
[357478563,1744079479136,-568.94,0.00026575,2]
[357478564,1744079479146,-523.03,0.00026575,2]
[357478565,1744079479158,-795.94,0.00026575,2]
[357478566,1744079479168,-590.76,0.00026575,2]
[357478567,1744079479182,-1531.45,0.00026575,2]
[357478568,1744079479193,-1878.37,0.00026575,2]
[357478569,1744079479205,-1180.34,0.00026575,2]
[357478570,1744079479216,-1118.42,0.00026575,2]
[357478571,1744079479227,-2000.22,0.00026575,2]
[357478572,1744079479238,-500.0,0.00026575,2]
[357478573,1744079479249,-500.0,0.00026575,2]
[357478574,1744079479260,-1868.62,0.00026575,2]
[357478575,1744079479271,-500.0,0.00026575,2]
[357478576,1744079479282,-500.0,0.00026575,2]
[357478577,1744079479293,-1602.29,0.00026575,2]
[357478578,1744079479304,-500.0,0.00026575,2]
[357478579,1744079479314,-1915.21,0.00026575,2]
[357478580,1744079479325,-500.0,0.00026575,2]
[357478581,1744079479335,-602.81,0.00026575,2]
[357478582,1744079479346,-500.0,0.00026575,2]
[357478583,1744079479356,-2426.96,0.00026575,2]
[357478584,1744079479366,-1165.83,0.00026575,2]
[357478585,1744079479377,-2935.5,0.00026575,2]
[357478586,1744079479388,-955.52,0.00026575,2]
[357478587,1744079479399,-1109.48,0.00026575,2]
[357478588,1744079479409,-500.0,0.00026575,2]
[357478589,1744079479420,-155.85527683,0.00026575,2]
[357478590,1744079479432,-1240.57,0.00026575,2]
[357478591,1744079479444,-500.0,0.00026575,2]
[357478592,1744079479461,-1640.16,0.00026575,2]
[357478593,1744079479473,-503.7,0.00026575,2]
[357478594,1744079479484,-1130.38,0.00026575,2]
[357478595,1744079479496,-500.11,0.00026849,2]
[357478596,1744079479507,-500.0,0.00026849,2]
[357478597,1744079479523,-500.0,0.00026849,2]
[357478598,1744079479534,-500.0,0.00026849,2]
[357478599,1744079479545,-500.0,0.00026849,2]
[357478600,1744079479555,-575.99238763,0.00026849,2]
[357478601,1744079479566,-617.55,0.00026849,2]
[357478602,1744079479577,-655.89,0.00026849,2]
[357478603,1744079479588,-500.0,0.00026849,2]
[357478604,1744079479598,-694.6,0.00026849,2]
[357478605,1744079479609,-777.63,0.00026849,2]
[357478606,1744079479620,-536.91,0.00026849,2]
[357478607,1744079479631,-527.31,0.00026849,2]
[357478608,1744079479642,-647.06,0.00026849,2]
[357478609,1744079479655,-500.0,0.00026849,2]
[357478610,1744079479666,-1500.08,0.00026849,2]
[357478611,1744079479679,-601.69,0.00026849,2]
[357478612,1744079479690,-500.0,0.00026849,2]
[357478613,1744079479702,-500.0,0.00026849,2]
[357478614,1744079479713,-1208.47,0.00026849,2]
[357478615,1744079479724,-500.0,0.00026849,2]
[357478616,1744079479735,-1268.13,0.00026849,2]
[357478617,1744079479745,-1140.19,0.00026849,2]
[357478618,1744079479756,-727.74,0.00026849,2]
[357478619,1744079479766,-554.86,0.00026849,2]
[357478620,1744079479777,-831.74,0.00026849,2]
[357478621,1744079479787,-500.0,0.00026849,2]
[357478622,1744079479798,-1393.1,0.00026849,2]
[357478623,1744079479808,-951.68,0.00026849,2]
[357478624,1744079479819,-1353.37,0.00026849,2]
[357478625,1744079479831,-500.0,0.00026849,2]
[357478626,1744079479841,-1182.11,0.00026849,2]
[357478627,1744079479852,-526.21,0.00026849,2]
[357478628,1744079479863,-2114.72,0.00026849,2]
[357478629,1744079479874,-572.22,0.00026849,2]
[357478630,1744079479884,-8763.46,0.00026849,2]
[357478631,1744079479894,-1114.99,0.00026849,2]
[357478632,1744079479906,-500.0,0.00026849,2]
[357478633,1744079479917,-836.02,0.00026849,2]
[357478634,1744079479929,-1780.71,0.00026849,2]
[357478635,1744079479940,-500.0,0.00026849,2]
[357478636,1744079479951,-595.24,0.00026849,2]
[357478637,1744079479962,-524.96,0.00026849,2]
[357478638,1744079479974,-771.06,0.00026849,2]
[357478639,1744079479984,-2262.69,0.00026849,2]
[357478640,1744079479996,-2880.26,0.00026849,2]
[357478641,1744079480006,-151.18921836,0.00026849,2]
[357478642,1744079480017,-1134.35,0.00026849,2]
[357478643,1744079480027,-1798.88,0.00026849,2]
[357478644,1744079480038,-589.5,0.00026849,2]
[357478645,1744079480047,-1340.54,0.00026849,2]
[357478646,1744079480058,-500.0,0.00026849,2]
[357478647,1744079480068,-154.01714416,0.00026849,2]
[357478648,1744079480079,-2337.51,0.00026849,2]
[357478649,1744079480089,-542.01,0.00026849,2]
[357478650,1744079480100,-2076.71,0.00026849,2]
[357478651,1744079480110,-730.76,0.00026849,2]
[357478652,1744079480121,-1162.69,0.00026849,2]
[357478653,1744079480131,-1291.27,0.00026849,2]
[357478654,1744079480144,-546.37,0.00026849,2]
[357478655,1744079480155,-1701.69,0.00026849,2]
[357478656,1744079480165,-1276.21,0.00026849,2]
[357478657,1744079480175,-561.08,0.00026849,2]
[357478658,1744079480186,-500.0,0.00026849,2]
[357478659,1744079480196,-890.46,0.00026849,2]
[357478660,1744079480208,-5381.3,0.00026849,2]
[357478661,1744079480218,-1513.16,0.00026849,2]
[357478662,1744079480229,-720.44,0.00026849,2]
[357478663,1744079480239,-500.0,0.00026849,2]
[357478664,1744079480249,-1073.11,0.00026849,2]
[357478665,1744079480260,-568.94,0.00026849,2]
[357478666,1744079480270,-523.03,0.00026849,2]
[357478667,1744079480281,-795.94,0.00026849,2]
[357478668,1744079480291,-590.76,0.00026849,2]
[357478669,1744079480301,-1531.45,0.00026849,2]
[357478670,1744079480311,-1878.37,0.00026849,2]
[357478671,1744079480321,-1180.34,0.00026849,2]
[357478672,1744079480332,-1118.42,0.00026849,2]
[357478673,1744079480342,-2000.22,0.00026849,2]
[357478674,1744079480353,-500.0,0.00026849,2]
[357478675,1744079480363,-500.0,0.00026849,2]
[357478676,1744079480375,-1868.62,0.00026849,2]
[357478677,1744079480392,-500.0,0.00026849,2]
[357478678,1744079480403,-500.0,0.00026849,2]
[357478679,1744079480413,-500.0,0.00026849,2]
[357478680,1744079480427,-1602.29,0.00026849,2]
[357478681,1744079480438,-1915.21,0.00026849,2]
[357478682,1744079480450,-500.0,0.00026849,2]
[357478683,1744079480461,-602.81,0.00026849,2]
[357478684,1744079480472,-500.0,0.00026849,2]
[357478685,1744079480482,-2426.96,0.00026849,2]
[357478686,1744079480493,-1165.83,0.00026849,2]
[357478687,1744079480503,-2935.5,0.00026849,2]
[357478688,1744079480516,-955.52,0.00026849,2]
[357478689,1744079480527,-1109.48,0.00026849,2]
[357478690,1744079480538,-500.0,0.00026849,2]
[357478691,1744079480549,-1240.57,0.00026849,2]
[357478692,1744079480558,-395.25267583,0.00026849,2]
[357478693,1744079480569,-1640.16,0.00026849,2]
[357478694,1744079480579,-503.7,0.00026849,2]
[357478695,1744079480590,-1130.38,0.00026849,2]
[357478696,1744079480600,-5476.32761835,0.00026934,7]
[357478697,1744079480610,-160.0,0.00027,3]
[357478698,1744079480620,-160.0,0.00027,3]
[357478699,1744079480632,-783.90533442,0.00027,3]
[357478700,1744079480645,-419.46366559,0.00027,3]
[357478701,1744079480654,-160.0,0.00027,3]
[357478702,1744079480666,-160.0,0.00027,3]
[357478703,1744079480678,-12530.86563381,0.00027,3]
[357478704,1744079480688,-231.28369723,0.0002708,2]
[357478705,1744079480699,-151.0,0.00027113,7]
[357478706,1744079480709,-500.11,0.00027123,2]
[357478707,1744079480723,-500.0,0.00027123,2]
[357478708,1744079480734,-500.0,0.00027123,2]
[357478709,1744079480745,-500.0,0.00027123,2]
[357478710,1744079480756,-500.0,0.00027123,2]
[357478711,1744079480766,-617.55,0.00027123,2]
[357478712,1744079480776,-655.89,0.00027123,2]
[357478713,1744079480786,-500.0,0.00027123,2]
[357478714,1744079480796,-694.6,0.00027123,2]
[357478715,1744079480807,-777.63,0.00027123,2]
[357478716,1744079480818,-536.91,0.00027123,2]
[357478717,1744079480828,-527.31,0.00027123,2]
[357478718,1744079480838,-647.06,0.00027123,2]
[357478719,1744079480848,-500.0,0.00027123,2]
[357478720,1744079480858,-1500.08,0.00027123,2]
[357478721,1744079480868,-601.69,0.00027123,2]
[357478722,1744079480878,-500.0,0.00027123,2]
[357478723,1744079480889,-500.0,0.00027123,2]
[357478724,1744079480899,-1208.47,0.00027123,2]
[357478725,1744079480909,-500.0,0.00027123,2]
[357478726,1744079480919,-1268.13,0.00027123,2]
[357478727,1744079480931,-1140.19,0.00027123,2]
[357478728,1744079480941,-727.74,0.00027123,2]
[357478729,1744079480951,-554.86,0.00027123,2]
[357478730,1744079480961,-831.74,0.00027123,2]
[357478731,1744079480972,-266.54005165,0.00027123,2]
[357478732,1744079480982,-1393.1,0.00027123,2]
[357478733,1744079480992,-951.68,0.00027123,2]
[357478734,1744079481002,-1353.37,0.00027123,2]
[357478735,1744079481012,-500.0,0.00027123,2]
[357478736,1744079481023,-1182.11,0.00027123,2]
[357478737,1744079481033,-526.21,0.00027123,2]
[357478738,1744079481043,-2114.72,0.00027123,2]
[357478739,1744079481054,-572.22,0.00027123,2]
[357478740,1744079481064,-8763.46,0.00027123,2]
[357478741,1744079481074,-1114.99,0.00027123,2]
[357478742,1744079481221,-500.0,0.00027123,2]
[357478743,1744079481249,-836.02,0.00027123,2]
[357478744,1744079481259,-1780.71,0.00027123,2]
[357478745,1744079481269,-500.0,0.00027123,2]
[357478746,1744079481279,-595.24,0.00027123,2]
[357478747,1744079481289,-524.96,0.00027123,2]
[357478748,1744079481299,-771.06,0.00027123,2]
[357478749,1744079481308,-2262.69,0.00027123,2]
[357478750,1744079481318,-2880.26,0.00027123,2]
[357478751,1744079481328,-1134.35,0.00027123,2]
[357478752,1744079481338,-1798.88,0.00027123,2]
[357478753,1744079481347,-589.5,0.00027123,2]
[357478754,1744079481357,-1340.54,0.00027123,2]
[357478755,1744079481367,-648.66,0.00027123,2]
[357478756,1744079481376,-2337.51,0.00027123,2]
[357478757,1744079481386,-542.01,0.00027123,2]
[357478758,1744079481397,-2076.71,0.00027123,2]
[357478759,1744079481407,-730.76,0.00027123,2]
[357478760,1744079481417,-1162.69,0.00027123,2]
[357478761,1744079481428,-1291.27,0.00027123,2]
[357478762,1744079481438,-546.37,0.00027123,2]
[357478763,1744079481448,-1701.69,0.00027123,2]
[357478764,1744079481458,-1276.21,0.00027123,2]
[357478765,1744079481468,-561.08,0.00027123,2]
[357478766,1744079481478,-500.0,0.00027123,2]
[357478767,1744079481488,-890.46,0.00027123,2]
[357478768,1744079481497,-5381.3,0.00027123,2]
[357478769,1744079481507,-1513.16,0.00027123,2]
[357478770,1744079481517,-720.44,0.00027123,2]
[357478771,1744079481527,-178.06448576,0.00027123,2]
[357478772,1744079481537,-1073.11,0.00027123,2]
[357478773,1744079481547,-568.94,0.00027123,2]
[357478774,1744079481557,-523.03,0.00027123,2]
[357478775,1744079481566,-795.94,0.00027123,2]
[357478776,1744079481576,-590.76,0.00027123,2]
[357478777,1744079481586,-1531.45,0.00027123,2]
[357478778,1744079481595,-1878.37,0.00027123,2]
[357478779,1744079481606,-1180.34,0.00027123,2]
[357478780,1744079481616,-1118.42,0.00027123,2]
[357478781,1744079481626,-2000.22,0.00027123,2]
[357478782,1744079481638,-500.0,0.00027123,2]
[357478783,1744079481651,-500.0,0.00027123,2]
[357478784,1744079481660,-1868.62,0.00027123,2]
[357478785,1744079481670,-560.86351321,0.00027123,2]
[357478786,1744079481681,-500.0,0.00027123,2]
[357478787,1744079481692,-339.73060867,0.00027123,2]
[357478788,1744079481702,-1602.29,0.00027123,2]
[357478789,1744079481712,-1915.21,0.00027123,2]
[357478790,1744079481724,-282.24501042,0.00027123,2]
[357478791,1744079481734,-602.81,0.00027123,2]
[357478792,1744079481743,-500.0,0.00027123,2]
[357478793,1744079481754,-2426.96,0.00027123,2]
[357478794,1744079481764,-151.0,0.00027123,7]
[357478795,1744079481774,-1165.83,0.00027123,2]
[357478796,1744079481783,-2935.5,0.00027123,2]
[357478797,1744079481793,-955.52,0.00027123,2]
[357478798,1744079481804,-521.80983,0.00027123,7]
[357478799,1744079481814,-521.80983,0.00027123,7]
[357478800,1744079481824,-1109.48,0.00027123,2]
[357478801,1744079481833,-500.0,0.00027123,2]
[357478802,1744079481843,-1240.57,0.00027123,2]
[357478803,1744079481853,-1640.16,0.00027123,2]
[357478804,1744079481863,-503.7,0.00027123,2]
[357478805,1744079481873,-1130.38,0.00027123,2]
[357478806,1744079481884,-502.23508926,0.00027152,2]
[357478807,1744079481894,-1000.0,0.00027152,2]
[357478808,1744079481904,-1000.0,0.00027152,2]
[357478809,1744079481913,-1000.0,0.00027152,2]
[357478810,1744079481923,-1000.0,0.00027152,2]
[357478811,1744079481934,-1000.0,0.00027152,2]
[357478812,1744079481944,-1000.0,0.00027152,2]
[357478813,1744079481954,-1000.0,0.00027152,2]
[357478814,1744079481964,-1000.0,0.00027152,2]
[357478815,1744079481974,-501.49010657,0.00027397,2]
[357478816,1744079481983,-500.11,0.00027397,2]
[357478817,1744079481993,-500.0,0.00027397,2]
[357478818,1744079482003,-500.0,0.00027397,2]
[357478819,1744079482012,-500.0,0.00027397,2]
[357478820,1744079482022,-344.52903144,0.00027397,2]
[357478821,1744079482032,-500.0,0.00027397,2]
[357478822,1744079482042,-617.55,0.00027397,2]
[357478823,1744079482052,-655.89,0.00027397,2]
[357478824,1744079482062,-500.0,0.00027397,2]
[357478825,1744079482072,-694.6,0.00027397,2]
[357478826,1744079482081,-187.1469345,0.00027397,2]
[357478827,1744079482092,-150.08,0.00027397,2]
[357478828,1744079482101,-777.63,0.00027397,2]
[357478829,1744079482111,-536.91,0.00027397,2]
[357478830,1744079482121,-527.31,0.00027397,2]
[357478831,1744079482131,-647.06,0.00027397,2]
[357478832,1744079482141,-500.0,0.00027397,2]
[357478833,1744079482150,-1500.08,0.00027397,2]
[357478834,1744079482160,-601.69,0.00027397,2]
[357478835,1744079482170,-500.0,0.00027397,2]
[357478836,1744079482180,-330.98916779,0.00027397,2]
[357478837,1744079482190,-1208.47,0.00027397,2]
[357478838,1744079482200,-500.0,0.00027397,2]
[357478839,1744079482210,-1268.13,0.00027397,2]
[357478840,1744079482219,-1140.19,0.00027397,2]
[357478841,1744079482229,-727.74,0.00027397,2]
[357478842,1744079482239,-554.86,0.00027397,2]
[357478843,1744079482248,-831.74,0.00027397,2]
[357478844,1744079482257,-239.067142,0.00027397,7]
[357478845,1744079482267,-1393.1,0.00027397,2]
[357478846,1744079482277,-951.68,0.00027397,2]
[357478847,1744079482286,-151.0,0.00027397,7]
[357478848,1744079482296,-253.205421,0.00027397,7]
[357478849,1744079482305,-151.0,0.00027397,7]
[357478850,1744079482315,-253.205421,0.00027397,7]
[357478851,1744079482324,-1353.37,0.00027397,2]
[357478852,1744079482334,-500.0,0.00027397,2]
[357478853,1744079482344,-1182.11,0.00027397,2]
[357478854,1744079482354,-526.21,0.00027397,2]
[357478855,1744079482364,-2114.72,0.00027397,2]
[357478856,1744079482373,-572.22,0.00027397,2]
[357478857,1744079482383,-151.0,0.00027397,7]
[357478858,1744079482393,-8763.46,0.00027397,2]
[357478859,1744079482403,-1114.99,0.00027397,2]
[357478860,1744079482413,-647.97186189,0.00027397,2]
[357478861,1744079482423,-836.02,0.00027397,2]
[357478862,1744079482436,-290.919118,0.00027397,7]
[357478863,1744079482446,-1780.71,0.00027397,2]
[357478864,1744079482457,-500.0,0.00027397,2]
[357478865,1744079482467,-290.919118,0.00027397,7]
[357478866,1744079482477,-151.0,0.00027397,2]
[357478867,1744079482486,-595.24,0.00027397,2]
[357478868,1744079482497,-524.96,0.00027397,2]
[357478869,1744079482506,-771.06,0.00027397,2]
[357478870,1744079482516,-200.035634,0.00027397,7]
[357478871,1744079482526,-2262.69,0.00027397,2]
[357478872,1744079482535,-170.115565,0.00027397,7]
[357478873,1744079482545,-200.035634,0.00027397,7]
[357478874,1744079482555,-170.115565,0.00027397,7]
[357478875,1744079482565,-2880.26,0.00027397,2]
[357478876,1744079482574,-1134.35,0.00027397,2]
[357478877,1744079482584,-1798.88,0.00027397,2]
[357478878,1744079482594,-589.5,0.00027397,2]
[357478879,1744079482605,-1340.54,0.00027397,2]
[357478880,1744079482616,-150.08,0.00027397,2]
[357478881,1744079482626,-2337.51,0.00027397,2]
[357478882,1744079482642,-150.08,0.00027397,2]
[357478883,1744079482654,-150.08,0.00027397,2]
[357478884,1744079482664,-542.01,0.00027397,2]
[357478885,1744079482675,-150.97968269,0.00027397,2]
[357478886,1744079482687,-2076.71,0.00027397,2]
[357478887,1744079482698,-150.08,0.00027397,2]
[357478888,1744079482708,-730.76,0.00027397,2]
[357478889,1744079482719,-1162.69,0.00027397,2]
[357478890,1744079482728,-1291.27,0.00027397,2]
[357478891,1744079482738,-546.37,0.00027397,2]
[357478892,1744079482748,-1701.69,0.00027397,2]
[357478893,1744079482758,-300.14238311,0.00027397,2]
[357478894,1744079482768,-1276.21,0.00027397,2]
[357478895,1744079482778,-150.315781,0.00027397,2]
[357478896,1744079482788,-561.08,0.00027397,2]